{"text_format":"1","workbook":"xlsx","n_sheets":13,"sheets":["Project Stages","00.00","00.20","10.00","20.00","20.99","30.00","30.70","Results of Review","Evolution sheet","30.90","Data","Abbreviation list"],"not_rendered":{"charts":0,"images":0,"macros":1,"external_links":1,"defined_names":4,"comments":2,"pivot_tables":0},"unopened":[],"bounds":{"document_bytes":16777216,"sheet_cells":100000,"rows_first":2000,"rows_last":500,"rows_between":2000,"halvings":0,"cell_chars":16384,"cell_head_chars":4096},"cells_cut":0,"cells_raw":0,"read":"whole","date_system":"1900"}

{"sheet":"Project Stages","index":0,"n_rows":26,"n_cols":14,"rows_kept":26,"cut":false,"hidden":false,"merged":[[0,0,0,13],[22,3,23,3],[22,4,23,4],[22,12,23,12],[9,4,10,4],[11,3,12,3],[11,4,12,4],[13,3,14,3],[13,4,14,4],[9,12,10,12],[13,9,14,9],[13,10,14,10],[13,8,14,8],[15,11,16,11],[15,9,16,9],[15,10,16,10],[15,8,16,8],[7,13,8,13],[5,5,6,5],[7,1,8,1],[7,2,8,2],[7,5,10,5],[9,1,10,1],[7,7,8,7],[7,6,8,6],[7,8,8,8],[7,9,8,9],[9,2,10,2],[7,3,8,3],[7,4,8,4],[9,3,10,3],[9,9,10,9],[18,13,19,13],[11,13,12,13],[11,12,12,12],[13,12,14,12],[15,12,16,12],[15,13,16,13],[13,13,14,13],[2,0,2,13],[7,10,8,10],[9,10,10,10],[9,13,10,13],[11,1,12,1],[11,5,12,5],[11,6,12,6],[11,7,12,7],[11,8,12,8],[11,9,12,9],[11,10,12,10],[11,11,12,11],[9,6,10,6],[9,7,10,7],[9,8,10,8],[7,12,8,12],[13,1,14,1],[13,2,16,2],[13,5,14,5],[13,6,14,6],[13,7,14,7],[15,3,16,3],[15,4,16,4],[15,1,16,1],[15,5,16,5],[15,6,16,6],[15,7,16,7],[18,1,19,1],[18,2,19,2],[18,5,19,5],[18,6,19,6],[18,7,19,7],[18,3,19,3],[18,4,19,4],[24,0,24,13],[25,0,25,13],[18,11,19,11],[22,1,23,1],[22,2,23,2],[22,5,23,5],[22,6,23,6],[22,7,23,7],[22,8,23,8],[22,9,23,9],[22,10,23,10],[22,13,23,13],[18,8,19,8],[18,9,19,9],[18,10,19,10],[18,12,19,12]]}
[{"$f":"'00.00'!A1:N1","v":"Title: Aerospace series — "}]
[]
["Project Stages"]
[]
["Process Step","Stage Code","Duration","Target date","Completion date","Platform/ deliverable","Exec","DTC","FP","WG","Orig","TAC","Service Provider","Remarks"]
["NWP issue","00.00",null,"2016-02-08",null,"NWP Form",null,null,null,null,"A"]
["NWP Assessment","00.20","Max 2 weeks",{"$f":"D6+14","v":"2016-02-22"},null,null,"A","A",null,null,"I","I"]
["Vote on NWP","10.00","1 month",{"$f":"D7+30","v":"2016-03-23"},null,"online tool",null,null,"A"]
["Review of target dates"]
["Final Assessment,","20.00","Max 1 week",{"$f":"D8+7","v":"2016-03-30"},null,null,"A","I","I","I","I"]
["prEN number allocation Launch Project"]
["Establishing committee draft (CTD) by the WG","20.99","0 to 6 months",{"$f":"D10+180","v":"2016-09-26"},null,"CTD",null,null,null,"A",null,"(A)"]
["Check conformance to the CEN drafting rules",null,"(Note 1)"]
["NDB / CEN-CENELEC","30.00","3 months",{"$f":"D12","v":"2016-09-26"},null,"online tool",null,null,"A"]
["Enquiry"]
["NBD / CEN-CENELEC","30.70",null,{"$f":"D14+92","v":"2016-12-27"},null,"online tool","A","I","I","I",null,"I"]
["Enquiry Results"]
["Process Step","Stage Code","Duration","Target date","Completion date","Platform/ deliverable","Exec","DTC","FP","WG","Orig","TAC","Service Provider","Remarks"]
["Disposition of comments Template and preparation of CD","30.70","Max 3 months (Note 1)",{"$f":"D16+90","v":"2017-03-27"},null,"Comment Template",null,null,null,"A",null,"(A)"]
["Check conformance to the CEN drafting rules"]
["Editing / Preparation of prEN Publication","30.90","Max 1 month",{"$f":"D19+30","v":"2017-04-26"},null,"CD","A"]
["Final check and approval for publication","30.99","Max 2 weeks",{"$f":"D21+14","v":"2017-05-10"},null,"Executive Decision","A","A",null,"A"]
["ASD-STAN prEN","40.00","1 week",{"$f":"D22+7","v":"2017-05-17"},null,"Final prEN","A"]
["Published"]
["I = Information, A = Action"]
["Note 1: Depending on the maturity of the NWP draft document. Extension needs approval of the TAC"]

{"sheet":"00.00","index":1,"n_rows":59,"n_cols":9,"rows_kept":59,"cut":false,"hidden":false,"merged":[[0,0,0,9],[58,0,58,5],[51,4,51,6],[24,4,24,6],[36,0,36,4],[16,2,16,3],[42,2,42,3],[43,2,43,3],[44,2,44,3],[45,2,45,3],[54,3,54,5],[46,2,46,3],[55,2,55,4],[41,0,41,1],[42,0,42,1],[16,0,16,1],[55,0,55,1],[47,2,47,3],[48,2,48,3],[54,6,54,9],[51,0,51,3],[47,4,47,7],[47,0,47,1],[54,0,54,2],[52,0,52,8],[48,0,48,1],[48,4,48,7],[48,8,48,9],[47,8,47,9],[10,2,10,3],[24,0,24,3],[25,0,25,3],[18,0,18,3],[26,0,26,9],[15,5,15,6],[10,5,10,8],[11,2,14,3],[19,0,19,9],[10,0,10,1],[13,5,13,6],[11,0,14,1],[11,5,11,9],[21,2,21,7],[22,0,22,9],[15,1,15,3],[2,0,2,9],[4,0,4,9],[9,0,9,1],[6,5,6,6],[6,0,6,1],[8,0,8,1],[8,5,8,6],[8,2,8,3],[9,2,9,3],[6,2,6,3],[43,0,43,1],[44,0,44,1],[45,0,45,1],[46,0,46,1],[44,8,44,9],[43,4,43,7],[44,4,44,7],[43,8,43,9],[45,8,45,9],[45,4,45,7],[46,4,46,7],[46,8,46,9],[27,0,27,6],[33,4,33,9],[31,6,31,9],[27,7,27,9],[29,0,29,6],[29,7,29,9],[31,0,31,5],[30,0,30,9],[33,0,33,3],[34,0,34,3],[37,4,37,9],[36,5,36,9],[41,4,41,7],[42,4,42,7],[34,4,34,9],[41,8,41,9],[42,8,42,9],[41,2,41,3],[40,0,40,3],[37,0,37,3]]}
["Title: Aerospace series — "]
[]
["Proposal [00.00]"]
[]
["To be completed by the Originator"]
[]
["NWP Date",null,"yyyy-mm-dd",null,null,"Type of standard"]
[]
["Originator ",null,null,null,null,"Domain"]
["Country"]
["Name ",null,null,null,null,"Other Domain/Working Group addressed"]
["Organisation (e.g. Company or ASD-STAN Working Group)"]
[]
[null,null,null,null,null,"Revision"]
[]
["Email",null,null,null,null,"Edition number"]
["Phone"]
[]
["English Title of the proposed standard"]
[]
[]
["Scope"]
[]
[]
["Purpose and justification of the proposal ",null,null,null,"If applicable"]
["Why is this standard needed?"]
[]
["What is the name of the program? (e.g. A320NEO, NH90, LEAP) ",null,null,null,null,null,null,"/"]
[]
["Documents (Standards) to be considered due to their similar nature   "]
[]
["Is there a need to involve other standards organizations? "]
[]
["Proposed development time"]
["Please justify your option selection"]
[]
["Known patent issues (See CEN/CENELEC Directives)"]
["If \"Yes\", provide full information "]
[]
[]
["Suggestion of Experts (Proposal only)"]
["Name",null,"Company",null,"email address",null,null,null,"Type"]
[]
[]
[]
[]
[]
[]
[]
[]
[]
["Suggestion of a Working Group Convenor "]
["NOTE: Fill out this section only if it is a new standard without any existing suitable WG"]
[]
["Signature or Name of Originator",null,null,null,null,null,"NOTE: Please type your full name here"]
["Date of signature",null,"yyyy-mm-dd"]
[]
[]
["Please return this Form by email to the ASD-STAN executive."]

{"sheet":"00.20","index":2,"n_rows":43,"n_cols":6,"rows_kept":43,"cut":false,"hidden":false,"merged":[[0,0,0,8],[42,0,42,5],[32,1,32,8],[22,0,22,2],[23,0,23,4],[24,0,24,4],[26,1,26,5],[25,1,25,5],[39,2,39,4],[39,5,39,8],[10,0,10,6],[12,0,12,1],[14,0,14,5],[16,0,16,1],[16,2,16,4],[4,0,4,8],[6,0,6,2],[7,0,7,1],[8,0,8,2],[8,3,8,8],[2,0,2,8],[40,0,40,1],[17,0,17,1],[40,2,40,3],[17,2,17,3],[34,0,34,3],[39,0,39,1],[35,1,35,5],[37,1,37,2],[37,3,37,8],[27,1,27,8],[29,0,29,4],[30,0,30,4],[31,1,31,3],[31,4,31,6],[20,0,20,8]]}
[{"$f":"'00.00'!A1:N1","v":"Title: Aerospace series — "}]
[]
["New Work Proposal Assessment [00.20]"]
[]
["To be completed by the ASD-STAN Executive"]
[]
["Commercial Evaluation"]
["the project is justified"]
["Results of commercial evaluation"]
[]
["Applicability of the Vienna Agreement, for harmonised development with ISO?"]
[]
["Domain Selection"]
[]
["The ASD-STAN Executive recommends to proceed with this NWP"]
[]
["Signature"]
["Date of signature",null,"yyyy-mm-dd"]
[]
[]
["To be completed by the DTC or the TAC"]
[]
["Technical Evaluation"]
["An existing standard/project already covers the subject"]
["An existing Working Group is covering this general topic"]
[null,"If applicable, first select the corresponding Domain,"]
[null,"and then select the corresponding Working Group"]
[null,"NOTE: if no Working Group which exists can cover the subject, a new Working Group will have to be implemented by the DTC (or TAC), with support from the ASD-STAN Executive."]
[]
["The justification for the development is sufficient"]
["This standard is subject to additional patents "]
[null,"If yes, patent reference"]
[null,"The ASD-STAN Executive will have to receive agreement from the patent holder before publication of the standard."]
[]
["The DTC agrees to continue the process"]
[null,"If Yes, select the recommended development time "]
[]
[null,"If No, please comment"]
[]
["Signature",null,null,null,null,"NOTE: Please type your full name here"]
["Date of signature",null,"yyyy-mm-dd"]
[]
["Please return this Form by email to the ASD-STAN executive."]

{"sheet":"10.00","index":3,"n_rows":37,"n_cols":8,"rows_kept":37,"cut":false,"hidden":false,"merged":[[0,0,0,8],[36,0,36,5],[17,3,17,5],[18,3,18,5],[19,3,19,5],[20,3,20,5],[15,6,15,8],[16,6,16,8],[17,6,17,8],[18,6,18,8],[19,6,19,8],[20,6,20,8],[23,0,23,8],[33,0,33,4],[30,0,30,1],[32,0,32,1],[32,2,32,3],[32,6,32,7],[25,1,25,5],[27,0,28,1],[27,2,28,8],[15,3,15,5],[16,3,16,5],[18,0,18,2],[19,0,19,2],[20,0,20,2],[15,0,15,2],[16,0,16,2],[17,0,17,2],[2,0,2,8],[4,0,4,1],[4,5,4,6],[4,2,4,3],[4,7,4,8],[8,0,8,4],[9,1,9,5],[6,0,6,8],[11,0,11,8],[14,0,14,8]]}
[{"$f":"'00.00'!A1:N1","v":"Title: Aerospace series — "}]
[]
["New Work Proposal Ballot [10.00]"]
[]
["Opening date of Ballot",null,"yyyy-mm-dd",null,null,"Closing date of Ballot",null,"yyyy-mm-dd"]
[]
["To be completed by the Focal Points"]
[]
["We agree to support the proposed New Work Proposal"]
[null,"If No, please specify in the comments section below"]
[]
["We are prepared to participate in the development of this standard (even if voting against), i.e. to make an effective contribution at the preparatory stage, at least by commenting on the working drafts"]
[]
[]
["If Yes, We nominate the following participants for the Working Group"]
["Name",null,null,"Company",null,null,"email address"]
[]
[]
[]
[]
[]
[]
[]
["There are relevant standards and/or other documents in our country which could be of use"]
[]
[null,"If Yes, please specify in the comments section below"]
[]
["Comments"]
[]
[]
["Focal Point"]
[]
["Signature",null,null,null,null,"Date","yyyy-mm-dd"]
["NOTE: Please type your full name here"]
[]
[]
["Please return this Form by email to the ASD-STAN executive."]

{"sheet":"20.00","index":4,"n_rows":53,"n_cols":9,"rows_kept":53,"cut":false,"hidden":false,"merged":[[28,0,28,3],[21,6,21,7],[22,6,22,7],[22,0,22,1],[22,2,22,3],[22,4,22,5],[24,0,24,1],[17,2,17,3],[17,4,17,5],[17,6,17,7],[18,0,18,1],[18,2,18,3],[18,4,18,5],[18,6,18,7],[19,0,19,1],[19,2,19,3],[24,2,24,3],[4,0,4,10],[21,8,21,10],[22,8,22,10],[24,8,24,10],[16,6,16,7],[17,0,17,1],[12,8,12,10],[12,6,12,7],[12,0,12,1],[12,2,12,3],[7,0,7,1],[19,6,19,7],[20,0,20,1],[21,0,21,1],[23,0,23,1],[23,2,23,3],[23,4,23,5],[23,6,23,7],[23,8,23,10],[43,0,43,1],[43,2,43,3],[43,4,43,5],[43,6,43,7],[39,2,39,3],[39,4,39,5],[0,0,0,10],[39,0,42,1],[40,4,40,5],[41,4,41,5],[42,4,42,5],[39,6,39,7],[39,8,39,10],[40,2,40,3],[41,2,41,3],[42,2,42,3],[40,6,40,7],[41,6,41,7],[42,6,42,7],[26,0,26,10],[36,3,36,5],[34,0,34,2],[34,3,34,5],[2,0,2,10],[49,0,49,1],[6,5,6,6],[10,0,10,10],[30,2,30,10],[29,2,29,10],[31,2,31,10],[32,2,32,10],[14,0,14,1],[15,0,15,1],[15,2,15,3],[15,4,15,5],[15,6,15,7],[16,0,16,1],[16,2,16,3],[16,4,16,5],[19,4,19,5],[21,2,21,3],[21,4,21,5],[24,4,24,5],[24,6,24,7],[6,0,6,1],[20,2,20,3],[20,4,20,5],[20,6,20,7],[52,0,52,10],[50,0,50,1],[50,2,50,3],[15,8,15,10],[16,8,16,10],[17,8,17,10],[18,8,18,10],[19,8,19,10],[20,8,20,10],[44,0,44,1],[44,2,44,3],[44,4,44,5],[44,6,44,7],[46,0,46,1],[46,2,46,4],[44,8,44,10],[43,8,43,10],[35,0,35,4],[36,0,36,2],[38,2,38,3],[38,4,38,5],[38,6,38,7],[38,8,38,10],[35,5,35,10]]}
[{"$f":"'00.00'!A1:N1","v":"Title: Aerospace series — "}]
[]
["Result Of Voting / Decision On NWP / Launch Of Project [20.00]"]
[]
["To be completed by the ASD-STAN Executive"]
[]
["Domain",null,null,null,null,null,null,"Revision"]
["Working Group"]
[]
["Title"]
["Aerospace series — "]
[]
["Ballot closing date",null,{"$f":"'10.00'!$H$5","v":"yyyy-mm-dd"},null,null,null,"Report date",null,"yyyy-mm-dd"]
[]
["Voting Results"]
["ASD-STAN members",null,"Members supporting the NWP",null,"Members not supporting the NWP",null,"Participants nominated",null,"Members did not reply"]
["DE (DIN e.V.)"]
["ES (TEDAE)"]
["FR (GIFAS)"]
["IT (AIAD)"]
["SE (SOFF)"]
["UK (ADS)"]
["EASA"]
["ASD"]
["Total*"]
[]
["*3 valid votes are required and at least 1 country must have nominated participants to accept this NWP"]
[]
["In line with the SPM, the proposal is"]
[null,null,"Commercially endorsed by the ASD-STAN Secretariat (See [00.20])"]
[null,null,"Technically endorsed by the relevant Domain Technical Coordinator (See [00.20])"]
[null,null,"Approved by the ballot (see above)"]
[null,null,"Not approved by the ballot (stage code 10.98)"]
[]
["Work Item number attributed by CEN"]
["Participation of CEN Members / Comments"]
["Attribution of prEN/TR number"]
[]
[null,null,"Name",null,"Company",null,"Country",null,"email address"]
["WG Experts"]
[]
[]
[]
["WG Convenor"]
["DTC"]
[]
["Work planning",null,"See \"Project Stages\" sheet"]
[]
[]
["Secretariat Executive"]
["Date of signature",null,"yyyy-mm-dd"]
[]
["The Executive Manager sendS this form to the Working Group Convenor. The WGC must coordinate the Project Team with support from his Secretariat.The Focal Points, the Originator and the DTC also receive a copy for information."]

{"sheet":"20.99","index":5,"n_rows":30,"n_cols":6,"rows_kept":30,"cut":false,"hidden":false,"merged":[[0,0,0,8],[27,3,27,4],[27,5,27,8],[26,0,26,2],[27,0,27,2],[20,4,20,5],[20,7,20,8],[25,4,25,5],[22,1,22,6],[22,7,22,8],[24,4,24,5],[24,7,24,8],[23,1,23,6],[19,7,19,8],[21,7,21,8],[2,0,2,8],[4,0,4,8],[11,0,11,8],[13,0,13,1],[13,4,13,5],[13,6,13,7],[15,1,16,6],[8,5,8,7],[6,5,6,7],[16,7,16,8],[18,1,18,6],[19,1,19,5],[32,5,32,7],[28,0,28,1],[30,1,30,8],[31,1,31,8],[29,0,29,5]]}
[{"$f":"'00.00'!A1:N1","v":"Title: Aerospace series — "}]
[]
["Confirmation of Agreement On Consensus Draft [20.99]"]
[]
["To be completed by the Working Group Convenor"]
[]
["Domain",null,null,null,null,"Revision"]
[]
["Working Group"]
[]
["Title"]
[{"$f":"'20.00'!$A$11","v":"Aerospace series — "}]
[]
["The WG Convenor"]
[]
[null,"confirms that consensus has been reached within the members for the text of the attached draft"]
[]
[]
[null,"and agrees that the attached draft is conformed to the STD-Template and to the CEN drafting rules."]
[]
[null,"OR"]
[]
[null,"informs the ASD-STAN Executive that the project has been cancelled, for the following reason(s):"]
[]
[]
[]
["Date of Consensus Draft",null,null,"yyyy-mm-dd"]
["Signature of the WG Convenor",null,null,null,null,"NOTE: Please type your full name here"]
[]
["Please return this Form by email to the ASD-STAN executive."]

{"sheet":"30.00","index":6,"n_rows":30,"n_cols":8,"rows_kept":30,"cut":false,"hidden":false,"merged":[[0,0,0,7],[4,0,4,7],[2,0,2,7],[21,1,21,4],[29,0,29,4],[6,4,6,5],[7,4,7,5],[8,4,8,5],[14,4,14,6],[12,0,12,7],[26,1,26,3],[17,1,17,4],[19,1,19,4],[14,0,14,1],[23,4,23,5],[16,0,16,1],[18,4,18,5],[25,1,25,2],[30,0,30,1],[24,4,24,5],[24,6,25,6],[20,4,20,5],[22,4,22,5]]}
[{"$f":"'00.00'!A1:N1","v":"Title: Aerospace series — "}]
[]
["Vote on Consensus Draft [30.00]"]
[]
["To be completed by the Focal Point"]
[]
["Domain",null,null,null,"Revision"]
[]
["Working Group",null,null,null,"Re-Ballot"]
[]
[]
["Title"]
[{"$f":"'20.00'!$A$11","v":"Aerospace series — "}]
[]
["Date of circulation",null,"yyyy-mm-dd",null,"Closing date for voting",null,null,"yyyy-mm-dd"]
[]
[]
[null,"We approve the technical content of the draft"]
[]
[null,"We disapprove for technical reasons (see Comment Form attached)"]
[]
[null,"No national interest / expertise"]
[]
[]
["Focal Point"]
["Date:","yyyy-mm-dd"]
["Signature",null,null,null,"NOTE: Please type your full name here"]
[]
[]
["Please return this Form by email to the ASD-STAN Executive."]

{"sheet":"30.70","index":7,"n_rows":41,"n_cols":8,"rows_kept":41,"cut":false,"hidden":false,"merged":[[0,0,0,8],[23,0,23,1],[23,4,23,5],[23,7,23,8],[20,7,20,8],[21,7,21,8],[22,7,22,8],[21,0,21,1],[22,0,22,1],[21,4,21,5],[22,4,22,5],[20,4,20,5],[16,0,16,1],[16,4,16,5],[16,7,16,8],[17,7,17,8],[40,0,40,1],[30,0,30,1],[32,6,32,7],[33,0,33,1],[39,4,39,5],[31,0,31,2],[39,0,39,1],[34,1,34,8],[35,1,35,8],[40,2,40,3],[36,1,36,8],[31,3,31,8],[28,0,28,8],[29,0,29,8],[2,0,2,8],[13,2,13,3],[13,5,13,6],[6,5,6,6],[8,5,8,6],[6,0,6,1],[8,0,8,1],[13,0,13,1],[15,0,15,1],[4,0,4,8],[11,0,11,8],[13,7,13,8],[17,0,17,1],[19,4,19,5],[18,7,18,8],[19,7,19,8],[19,0,19,1],[20,0,20,1],[17,4,17,5],[18,0,18,1],[18,4,18,5],[24,0,24,1],[24,4,24,5],[24,7,24,8],[25,6,26,6],[25,7,26,8],[25,0,26,1],[25,4,25,5],[26,2,26,5]]}
[{"$f":"'00.00'!A1:N1","v":"Title: Aerospace series — "}]
[]
["Voting Results On National Domain Ballot [30.70]"]
[]
["To be completed by the ASD-STAN Executive"]
[]
["Domain",null,null,null,null,"Revision"]
[]
["Working Group",null,null,null,null,"Re-Ballot"]
[]
["Title"]
[{"$f":"'20.00'!$A$11","v":"Aerospace series — "}]
[]
["Ballot closing date ",null,{"$f":"'30.00'!$H$15","v":"yyyy-mm-dd"},null,null,"Report date",null,"yyyy-mm-dd"]
[]
["Voting Results:"]
["ASD-STAN members",null,"Approval","Disapproval","No national interest/expertise",null,"No reply","Comments"]
["DE (DIN e.V.)"]
["ES (TEDAE)"]
["FR (GIFAS)"]
["IT (AIAD)"]
["SE (SOFF)"]
["UK (ADS)"]
["EASA"]
["ASD"]
["Total"]
[null,null,"* min. 3"]
[]
["* A minimum of 3 valid votes (Approval, Disapproval or no interest) is required to validate the ballot."]
[]
["CEN Enquiry Results"]
["CEN members comments"]
[]
["Decision:"]
[null,"Approved and Proceed to the Editing of the document for its publication"]
[null,"Approved and Proceed to the Disposition of Comments by the Working Group"]
[null,"Disapproved and Return the draft to the Working Group for review with a result of a re-ballot [20.99] or a cancellation [30.98]"]
[]
[]
["Secretariat Executive "]
["Date of signature",null,"yyyy-mm-dd"]

{"sheet":"Results of Review","index":8,"n_rows":15,"n_cols":6,"rows_kept":15,"cut":false,"hidden":false,"merged":[[0,0,0,8],[14,0,14,4],[2,0,2,8],[4,0,4,8],[6,0,6,1],[6,5,6,6],[10,1,10,3],[10,4,10,7],[11,1,11,2]]}
[{"$f":"'00.00'!A1:N1","v":"Title: Aerospace series — "}]
[]
["Results of review in case of no consensus"]
[]
["To be completed by the DTC"]
[]
["Cancellation",null,null,null,null,"Re-Ballot"]
[]
[]
[]
["Signature",null,null,null,"NOTE: Please type your full name here"]
["Date","yyyy-mm-dd"]
[]
[]
["Please return this Form by email to the ASD-STAN Executive."]

{"sheet":"Evolution sheet","index":9,"n_rows":8,"n_cols":5,"rows_kept":8,"cut":false,"hidden":false,"merged":[[0,0,0,4],[1,0,1,4],[5,0,6,0],[5,1,6,1],[5,2,6,2],[5,3,6,3],[5,4,6,4],[3,0,3,4]]}
[{"$f":"'00.00'!A1:N1","v":"Title: Aerospace series — "}]
["Evolution sheet"]
[]
["To be completed by the Originator"]
[]
["prEN/EN Number","Edition","Publication Date","Modification","Reason and validation"]
[]
["prEN XXXX","P1","MM/YYYY"]

{"sheet":"30.90","index":10,"n_rows":48,"n_cols":6,"rows_kept":48,"cut":false,"hidden":false,"merged":[[0,0,0,8],[15,2,15,3],[15,0,15,1],[28,2,28,4],[29,2,29,4],[16,0,16,5],[29,0,29,1],[28,5,28,8],[19,0,19,8],[21,0,21,1],[23,0,23,3],[24,2,24,8],[26,0,26,8],[1,0,1,8],[8,0,8,2],[9,2,9,8],[31,0,31,5],[28,0,28,1],[44,5,44,8],[30,2,30,3],[30,0,30,1],[44,2,44,4],[11,0,11,8],[5,0,5,1],[6,0,6,1],[13,0,13,1],[3,0,3,8],[14,0,14,1],[13,5,13,8],[13,2,13,4],[14,2,14,4],[47,0,47,5],[44,0,44,1],[45,0,45,1],[34,0,34,8],[36,0,36,1],[37,0,37,1],[39,0,39,2],[40,2,40,8],[42,0,42,8],[45,2,45,4],[46,2,46,3],[46,0,46,1]]}
[{"$f":"'00.00'!A1:N1","v":"Title: Aerospace series — "}]
["Approval for publication [30.90]"]
[]
["To be completed by the Working Group Convenor"]
[]
["Domain"]
["Working Group"]
[]
["The Working Group Convenor"]
[null,null,"approves the publication of the draft referenced above under the aspect of the comments disposition"]
[]
["It will be published as prEN pending its publication as European Standard. "]
[]
["Signature",null,null,null,null,"NOTE: Please type your full name here"]
["Company"]
["Date",null,"yyyy-mm-dd"]
["Please return this Form by email to the ASD-STAN Executive."]
[]
[]
["To be completed by the Domain Technical Coordinator"]
[]
["Domain"]
[]
["The Domain Technical Coordinator"]
[null,null,"approves the publication of the draft referenced above under the aspect of its technical content"]
[]
["It will be published as prEN pending its publication as European Standard. "]
[]
["Signature",null,null,null,null,"NOTE: Please type your full name here"]
["Company"]
["Date",null,"yyyy-mm-dd"]
["Please return this Form by email to the ASD-STAN Executive."]
[]
[]
["To be completed by the Working Group Secretariat"]
[]
["Domain"]
["Working Group"]
[]
["The Working Group Secretariat"]
[null,null,"confirms that the document is conform to ASD-STAN Guidelines"]
[]
["It will be published as prEN pending its publication as European Standard. "]
[]
["Signature",null,null,null,null,"NOTE: Please type your full name here"]
["Company"]
["Date",null,"yyyy-mm-dd"]
["Please return this Form by email to the ASD-STAN Executive."]

{"sheet":"Data","index":11,"n_rows":40,"n_cols":8,"rows_kept":40,"cut":false,"hidden":true,"merged":[[39,0,39,4]]}
[]
[]
["-"]
["prEN",null,null,"Select a Domain"]
["TR",null,null,"D1 General"]
[null,null,null,"D2 Electrical"]
[null,null,null,"D3 Mechanical"]
["-",null,null,"D4 Material"]
["Yes",null,null,"D5 Autonomous Flying "]
["No",null,null,"D6 Quality"]
["n/a",null,null,"D7 Digital Projects"]
[null,null,null,"D8 Customer and Product Support"]
["-",null,null,"D9 Environment"]
["User",null,null,"D10 Space",null,null,"Select Option"]
["Manufacturer",null,null,"D12 Cabin",null,null,"as presented"]
["General",null,null,"TA",null,null,"with comments (see Comment Form attached)"]
[null,"-"]
[null,"Best seller"]
[null,"Medium seller"]
[null,"Limited application",null,null,null,"-"]
["-",null,null,null,null,"Yes"]
["Option 1 [8 months]",null,null,null,null,"No"]
["Option 2 [12 months] - default",null,null,null,null,"Don't know"]
["Option 3 [17 months]"]
[null,null,null,null,null,null,null,"Select a Working Group"]
[null,null,null,null,null,null,null,"WG 01"]
[null,null,null,null,null,null,null,"WG 02"]
["Select an ASD-STAN member",null,null,null,"Select Result",null,null,"WG 03"]
["France (GIFAS)",null,null,null,"Fail",null,null,"WG 04"]
["Germany (DIN e.V.)",null,null,null,"Pass",null,null,"WG 05"]
["Italy (AIAD)",null,null,null,null,null,null,"WG 06"]
["Spain (TEDAE)",null,null,null,null,null,null,"WG 07"]
["Sweden (SOFF)",null,null,null,null,null,null,"WG 08"]
["UK (ADS)",null,null,null,null,null,null,"WG 09"]
["EASA",null,null,null,null,"-",null,"WG 10"]
["ASD",null,null,null,null,"Anja Lange",null,"WG 11"]
[null,null,null,null,null,"Ariane Mazel",null,"WG 14"]
[null,null,null,null,null,null,null,"WG 15"]
["Select Result"]
["We accept subject to the implementation of our specified technical comments."]

{"sheet":"Abbreviation list","index":12,"n_rows":36,"n_cols":2,"rows_kept":36,"cut":false,"hidden":false,"merged":[]}
[]
["ASD","AeroSpace & Defence Industries Association of Europe"]
["ASD-STAN","ASD Standardization Body"]
["CD","Consensus Draft"]
["CTD","Committee Draft"]
["CEN","European Committee for Standardization"]
["CENELEC","European Committee for Electrotechnical Standardization"]
["CCMC","CEN-CENELEC Management Centre"]
["CS","Cover Sheet"]
["DC","Declassification"]
["DTC","Domain Technical Coordinator"]
["EDA","European Defence Agency"]
["EN","European Standard"]
["Exp","Expert"]
["Ext","External Participant in Working Group"]
["FP","Focal Point"]
["FV","Formal Vote"]
["IAQG","International Aerospace Quality Group"]
["ISO","International Organization for Standardization"]
["MC","Member Coordinator"]
["NDB","National Domain Ballot"]
["NWP","New Work Proposal"]
["PT","Project Team"]
["PTL","Project Team Leader"]
["prEN","projected EN"]
["RT","Withdrawal"]
["SPM","Standardization Process Manual (this document)"]
["TA","Technical Authority"]
["TAC","Technical Authority Chairman"]
["TC","Technical committee"]
["ToR","Term of Reference"]
["TR","Technical Report"]
["WD","Working Draft"]
["WG","Working Group "]
["WGC","Working Group Convener"]
["WI","Work Item number, allocated by CEN-CENELEC Management Center"]